fUST/lending_fUST_20250326
["ID","MTS","AMOUNT","RATE_DAILY","PERIOD"]
[356695401,1742982632388,-500.0,0.00010958,2]
[356695402,1742982632398,-500.0,0.00010958,2]
[356695403,1742982632407,-577.8029708,0.00010958,2]
[356695404,1742982632417,-500.0,0.00010958,2]
[356695405,1742982632426,-500.0,0.00010973,2]
[356695406,1742982632436,-500.0,0.00010973,2]
[356695407,1742982632445,-500.0,0.00010973,2]
[356695408,1742982632455,-1744.54,0.00014403,2]
[356695409,1742982632464,-1744.54,0.00014677,2]
[356695410,1742982632474,-1744.54,0.00014951,2]
[356695412,1742982632483,-250.0,0.00015092,2]
[356695414,1742982632492,-1744.54,0.00015225,2]
[356695416,1742982632502,-1197.35736434,0.0001546,2]
[356695418,1742982632511,-500.0,0.00015473,2]
[356695420,1742982632521,-164.75192957,0.00015473,2]
[356695422,1742982632530,-500.0,0.00015473,2]
[356695424,1742982632540,-1744.54,0.00015499,2]
[356695426,1742982632550,-1744.54,0.00015773,2]
[356695428,1742982632559,-1744.54,0.00016047,2]
[356695430,1742982632569,-1744.54,0.00016321,2]
[356695432,1742982632579,-1000.0,0.00016452,2]
[356695434,1742982632588,-1000.0,0.00016452,2]
[356695436,1742982632598,-1000.0,0.00016452,2]
[356695438,1742982632607,-1744.54,0.00016595,2]
[356695440,1742982632617,-1744.54,0.00016869,2]
[356695443,1742982632630,-1744.54,0.00017143,2]
[356695444,1742982632639,-1744.54,0.00017416,2]
[356695447,1742982632651,-3967.19369994,0.00017484,2]
[356695473,1742982637854,-1009.9566468,0.00017484,2]
[356695474,1742982637962,-434.81370448,0.00017484,2]
[356695548,1742982646041,-7435.89048499,0.00017484,2]
[356695555,1742983578901,10000.0,8e-05,2]
[356695556,1742983586967,10000.0,8e-05,2]
[356695557,1742983597442,2966.8,8e-05,2]
[356695558,1742983645147,-264.17989103,0.00010631,2]
[356695559,1742983647120,-367.43408436,0.00010631,2]
[356695560,1742983652116,-2080.08937309,0.00010631,2]
[356695561,1742983652138,-182.824014,0.00010738,2]
[356695562,1742983652159,-1658.85945049,0.00010858,2]
[356695563,1742983748167,-156.01943339,0.0001075,2]
[356695564,1742983748202,-3684.17051528,0.00010858,2]
[356695565,1742983748241,-182.824014,0.00010881,2]
[356695566,1742983748263,-300.0,0.00010957,2]
[356695567,1742983748284,-263.34199578,0.00010958,2]
[356695568,1742983748306,-190.41411458,0.00010958,2]
[356695569,1742983748327,-500.0,0.00010958,2]
[356695570,1742983748348,-220.81686952,0.00010958,2]
[356695571,1742983748372,-176.664437,0.00010959,2]
[356695572,1742983748395,-167.95,0.00010959,2]
[356695573,1742983748421,-847.41,0.00010959,2]
[356695574,1742983748445,-469.64,0.00010959,2]
[356695575,1742983748473,-391.37,0.00010959,2]
[356695576,1742983748497,-182.824014,0.00011024,2]
[356695577,1742983748521,-3100.6256671,0.00011029,2]
[356695578,1742983748546,-182.824014,0.00011168,2]
[356695579,1742983748567,-500.0,0.00011232,2]
[356695580,1742983748587,-431.0,0.0001145,2]
[356695581,1742983748608,-500.0,0.00011503,2]
[356695582,1742983748630,-500.0,0.00011503,2]
[356695583,1742983748651,-522.39924767,0.00011504,2]
[356695584,1742983748671,-534.10065993,0.00011504,2]
[356695585,1742983748692,-232.26,0.00011504,2]
[356695586,1742983748714,-500.0,0.00011504,2]
[356695587,1742983748734,-872.27,0.00011504,2]
[356695588,1742983748756,-500.0,0.00011504,2]
[356695589,1742983748776,-500.0,0.00011504,2]
[356695590,1742983748796,-1651.16,0.00011504,2]
[356695591,1742983748816,-500.0,0.00011504,2]
[356695592,1742983748838,-500.0,0.00011504,2]
[356695593,1742983748858,-152.0,0.00011542,2]
[356695594,1742983748879,-500.0,0.00011777,2]
[356695595,1742983748900,-500.0,0.00011777,2]
[356695596,1742983748922,-500.0,0.00011777,2]
[356695597,1742983748944,-237.28,0.00011777,2]
[356695598,1742983748966,-500.0,0.00011778,2]
[356695599,1742983748987,-872.27,0.00011778,2]
[356695600,1742983749013,-500.0,0.00011778,2]
[356695601,1742983749035,-594.16,0.00011778,2]
[356695602,1742983749057,-1651.16,0.00011778,2]
[356695603,1742983749079,-500.0,0.00011778,2]
[356695604,1742983749101,-500.0,0.00011778,2]
[356695605,1742983749122,-193.0,0.00011802,2]
[356695606,1742983749143,-500.0,0.0001188,2]
[356695607,1742983749164,-500.0,0.0001204,2]
[356695608,1742983749186,-500.0,0.0001204,2]
[356695609,1742983749208,-505.47,0.0001204,2]
[356695610,1742983749231,-547.75,0.0001204,2]
[356695611,1742983749252,-363.46,0.0001204,2]
[356695612,1742983749274,-336.8635762,0.0001204,2]
[356695613,1742983749296,-500.0,0.0001204,2]
[356695614,1742983749319,-500.0,0.0001204,2]
[356695615,1742983749344,-420.0,0.00012041,2]
[356695616,1742983749368,-471.14852587,0.0001205,2]
[356695617,1742983749390,-500.0,0.00012051,2]
[356695618,1742983749413,-500.0,0.00012051,2]
[356695619,1742983749435,-500.0,0.00012051,2]
[356695620,1742983749457,-500.0,0.00012052,2]
[356695621,1742983749479,-872.27,0.00012052,2]
[356695622,1742983749504,-500.0,0.00012052,2]
[356695623,1742983749525,-1651.16,0.00012052,2]
[356695624,1742983749548,-500.0,0.00012052,2]
[356695625,1742983749570,-500.0,0.00012052,2]
[356695626,1742983749590,-245.0,0.00012067,2]
[356695627,1742983749612,-500.81363062,0.000121,2]
[356695628,1742983749632,-365.6757091,0.00012115,2]
[356695629,1742983749653,-501.95308599,0.00012254,2]
[356695630,1742983749674,-500.0,0.00012314,2]
[356695631,1742983749694,-500.0,0.00012314,2]
[356695632,1742983749715,-547.75,0.00012314,2]
[356695633,1742983749736,-500.0,0.00012314,2]
[356695634,1742983749757,-500.0,0.00012325,2]
[356695635,1742983749778,-500.0,0.00012325,2]
[356695636,1742983749797,-872.27,0.00012326,2]
[356695637,1742983749818,-500.0,0.00012326,2]
[356695638,1742983749838,-1651.16,0.00012326,2]
[356695639,1742983749858,-500.0,0.00012326,2]
[356695640,1742983749878,-500.0,0.00012326,2]
[356695641,1742983749898,-153.0,0.00012339,2]
[356695642,1742983749919,-800.0,0.000125,2]
[356695643,1742983749940,-500.0,0.00012588,2]
[356695644,1742983749962,-500.0,0.00012588,2]
[356695645,1742983749983,-547.75,0.00012588,2]
[356695646,1742983750005,-500.0,0.00012588,2]
[356695647,1742983750031,-500.0,0.00012599,2]
[356695648,1742983750053,-500.0,0.00012599,2]
[356695649,1742983750074,-872.27,0.000126,2]
[356695650,1742983750099,-500.0,0.000126,2]
[356695651,1742983750121,-1651.16,0.000126,2]
[356695652,1742983750143,-500.0,0.000126,2]
[356695653,1742983750165,-500.0,0.000126,2]
[356695654,1742983750185,-549.0000049,0.00012788,2]
[356695655,1742983750207,-500.0,0.00012862,2]
[356695656,1742983750229,-500.0,0.00012862,2]
[356695657,1742983750250,-547.75,0.00012862,2]
[356695658,1742983750271,-500.0,0.00012862,2]
[356695659,1742983750293,-278.95,0.00012873,2]
[356695660,1742983750315,-500.0,0.00012873,2]
[356695661,1742983750337,-872.27,0.00012874,2]
[356695662,1742983750360,-500.0,0.00012874,2]
[356695663,1742983750380,-1651.16,0.00012874,2]
[356695664,1742983750401,-500.0,0.00012874,2]
[356695665,1742983750423,-627.73,0.00012874,2]
[356695666,1742983750444,-527.64375617,0.00013099,2]
[356695667,1742983750466,-500.0,0.00013099,2]
[356695668,1742983750488,-500.0,0.00013099,2]
[356695669,1742983750510,-517.34133124,0.00013099,2]
[356695670,1742983750530,-516.91090613,0.00013099,2]
[356695671,1742983750551,-515.94122449,0.00013099,2]
[356695672,1742983750575,-515.33781025,0.00013099,2]
[356695673,1742983750597,-515.0897544,0.00013099,2]
[356695674,1742983750618,-412.34472677,0.00013099,2]
[356695675,1742983750639,-508.2444713,0.00013099,2]
[356695676,1742983750659,-500.0,0.00013099,2]
[356695677,1742983750681,-500.0,0.00013099,2]
[356695678,1742983750701,-500.0,0.00013099,2]
[356695679,1742983750723,-185.28390701,0.00013099,2]
[356695680,1742983750746,-533.70897507,0.00013099,2]
[356695681,1742983750768,-500.0,0.00013099,2]
[356695682,1742983750790,-500.0,0.00013099,2]
[356695683,1742983750811,-500.0,0.00013099,2]
[356695684,1742983750831,-500.0,0.00013099,2]
[356695685,1742983750852,-500.0,0.00013136,2]
[356695686,1742983750873,-547.75,0.00013136,2]
[356695687,1742983750894,-489.06,0.00013136,2]
[356695688,1742983751028,-500.0,0.00013147,2]
[356695689,1742983751052,-872.27,0.00013148,2]
[356695690,1742983751074,-500.0,0.00013148,2]
[356695691,1742983751096,-1651.16,0.00013148,2]
[356695692,1742983751117,-500.0,0.00013148,2]
[356695693,1742983751138,-500.0,0.00013172,2]
[356695694,1742983751159,-500.0,0.00013172,2]
[356695695,1742983751180,-500.0,0.00013172,2]
[356695696,1742983751206,-500.0,0.00013172,2]
[356695697,1742983751227,-500.0,0.00013372,2]
[356695698,1742983751247,-650.83471563,0.00013372,2]
[356695699,1742983751268,-552.63947249,0.00013373,2]
[356695700,1742983751289,-415.16752896,0.00013373,2]
[356695701,1742983751310,-500.0,0.00013373,2]
[356695702,1742983751330,-500.0,0.00013373,2]
[356695703,1742983751351,-500.0,0.00013373,2]
[356695704,1742983751372,-500.0,0.00013373,2]
[356695705,1742983751393,-500.0,0.00013373,2]
[356695706,1742983751414,-500.0,0.0001341,2]
[356695707,1742983751435,-547.75,0.0001341,2]
[356695708,1742983751455,-500.0,0.00013413,2]
[356695709,1742983751476,-500.0,0.00013413,2]
[356695710,1742983751498,-500.0,0.00013421,2]
[356695711,1742983751519,-872.27,0.00013422,2]
[356695712,1742983751541,-500.0,0.00013422,2]
[356695713,1742983751561,-1651.16,0.00013422,2]
[356695714,1742983751582,-352.69,0.00013422,2]
[356695715,1742983751604,-2255.14384317,0.000135,2]
[356695716,1742983751625,-2255.14384302,0.000135,2]
[356695717,1742983751646,-500.0,0.00013647,2]
[356695718,1742983751666,-500.0,0.00013647,2]
[356695719,1742983751687,-500.0,0.00013647,2]
[356695720,1742983751709,-493.62284067,0.00013647,2]
[356695721,1742983751730,-500.0,0.00013678,2]
[356695722,1742983751752,-572.91,0.00013684,2]
[356695723,1742983751773,-547.75,0.00013684,2]
[356695724,1742983751794,-500.0,0.00013695,2]
[356695725,1742983751814,-872.27,0.00013696,2]
[356695726,1742983751835,-500.0,0.00013696,2]
[356695727,1742983751856,-1651.16,0.00013696,2]
[356695728,1742983751877,-166.62070409,0.00013698,2]
[356695729,1742983751896,-500.0,0.00013773,2]
[356695730,1742983751917,-500.0,0.00013773,2]
[356695731,1742983751937,-500.0,0.00013773,2]
[356695732,1742983751958,-500.0,0.00013773,2]
[356695733,1742983751980,-500.0,0.00013773,2]
[356695734,1742983752001,-579.66,0.00013921,2]
[356695735,1742983752028,-547.75,0.00013958,2]
[356695736,1742983752050,-500.0,0.00013969,2]
[356695737,1742983752072,-872.27,0.0001397,2]
[356695738,1742983752096,-500.0,0.0001397,2]
[356695739,1742983752117,-1651.16,0.0001397,2]
[356695740,1742983752138,-500.0,0.00013972,2]
[356695741,1742983752160,-206.55148132,0.00013972,2]
[356695742,1742983752182,-547.75,0.00014232,2]
[356695743,1742983752202,-500.0,0.00014243,2]
[356695744,1742983752225,-872.27,0.00014244,2]
[356695745,1742983752248,-500.0,0.00014244,2]
[356695746,1742983752269,-1597.07005337,0.00014244,2]
[356695747,1742983752482,-500.0,0.00013172,2]
[356695748,1742983752502,-500.0,0.00013172,2]
[356695749,1742983752523,-54.08994663,0.00014244,2]
[356695750,1742983752544,-2255.14384302,0.00014314,2]
[356695751,1742983752566,-547.75,0.00014506,2]
[356695752,1742983752588,-359.95,0.00014517,2]
[356695753,1742983752608,-872.27,0.00014518,2]
[356695754,1742983752630,-500.0,0.00014518,2]
[356695755,1742983752651,-1651.16,0.00014518,2]
[356695756,1742983752671,-500.0,0.00014655,2]
[356695757,1742983752692,-12458.93820146,0.0001472,2]
[356695758,1742983752713,-547.75,0.0001478,2]
[356695759,1742983752734,-872.27,0.00014792,2]
[356695760,1742983752755,-500.0,0.00014792,2]
[356695761,1742983752780,-1651.16,0.00014792,2]
[356695762,1742983752801,-547.75,0.00015054,2]
[356695763,1742983752821,-872.27,0.00015066,2]
[356695764,1742983752842,-500.0,0.00015066,2]
[356695765,1742983752862,-1651.16,0.00015066,2]
[356695766,1742983752882,-890.57510376,0.00015241,2]
[356695767,1742983752906,-547.75,0.00015328,2]
[356695768,1742983752928,-872.27,0.0001534,2]
[356695769,1742983752950,-500.0,0.0001534,2]
[356695770,1742983752970,-1651.16,0.0001534,2]
[356695771,1742983752992,-2255.14384302,0.00015521,2]
[356695772,1742983753016,-547.75,0.00015602,2]
[356695773,1742983753037,-872.27,0.00015614,2]
[356695774,1742983753059,-500.0,0.00015614,2]
[356695775,1742983753081,-1651.16,0.00015614,2]
[356695776,1742983753103,-547.75,0.00015876,2]
[356695777,1742983753124,-872.27,0.00015888,2]
[356695778,1742983753146,-500.0,0.00015888,2]
[356695779,1742983753166,-1651.16,0.00015888,2]
[356695780,1742983753187,-890.57510376,0.00016131,2]
[356695781,1742983753207,-547.75,0.0001615,2]
[356695782,1742983753229,-872.27,0.00016162,2]
[356695783,1742983753251,-500.0,0.00016162,2]
[356695784,1742983753270,-1651.16,0.00016162,2]
[356695785,1742983753291,-547.75,0.00016424,2]
[356695786,1742983753310,-872.27,0.00016436,2]
[356695787,1742983753331,-500.0,0.00016436,2]
[356695788,1742983753350,-1651.16,0.00016436,2]
[356695789,1742983753369,-500.0,0.00016438,2]
[356695790,1742983753388,-500.0,0.00016438,2]
[356695791,1742983753407,-500.0,0.00016438,2]
[356695792,1742983753426,-500.0,0.00016438,2]
[356695793,1742983753445,-500.0,0.00016438,2]
[356695794,1742983753465,-500.0,0.00016438,2]
[356695795,1742983753486,-502.45261492,0.00016438,2]
[356695796,1742983753510,-200.0,0.00016438,2]
[356695797,1742983753533,-216.63531032,0.00016438,2]
[356695798,1742983753555,-1000.0,0.00016438,7]
[356695799,1742983753575,-1000.0,0.00016438,7]
[356695800,1742983753596,-586.28,0.00016438,7]
[356695801,1742983753739,-500.0,0.00016451,2]
[356695802,1742983753765,-547.75,0.00016698,2]
[356695803,1742983753786,-872.27,0.0001671,2]
[356695804,1742983753807,-500.0,0.0001671,2]
[356695805,1742983753828,-1651.16,0.0001671,2]
[356695806,1742983753847,-2500.0,0.00016711,2]
[356695807,1742983753868,-500.0,0.00016725,2]
[356695808,1742983753890,-2255.14384302,0.00016728,2]
[356695809,1742983753910,-547.75,0.00016972,2]
[356695810,1742983753931,-872.27,0.00016984,2]
[356695811,1742983753951,-224.29961445,0.00016984,2]
[356695812,1742983753972,-1651.16,0.00016984,2]
[356695813,1742983753994,-500.0,0.00016999,2]
[356695814,1742983754021,-273.35,0.00017,2]
[356695815,1742983754042,-500.0,0.00017,2]
[356695816,1742983754064,-500.0,0.00017,2]
[356695817,1742983754085,-500.0,0.00017,2]
[356695818,1742983754106,-1323.98082,0.00017,2]
[356695819,1742983754127,-890.57510376,0.00017021,2]
[356695820,1742983754147,-151.0,0.00017021,2]
[356695821,1742983754167,-151.0,0.00017021,2]
[356695822,1742983754188,-151.0,0.00017021,2]
[356695823,1742983754210,-547.75,0.00017246,2]
[356695824,1742983754232,-872.27,0.00017258,2]
[356695825,1742983754254,-1651.16,0.00017258,2]
[356695826,1742983754275,-591.6,0.00017273,2]
[356695827,1742983754296,-254.45,0.00017458,2]
[356695828,1742983754316,-9878.07689302,0.00017484,2]
[356695829,1742983754336,-1000.0,0.000175,2]
[356695830,1742983754355,-258.77,0.000175,2]
[356695831,1742983754376,-547.75,0.0001752,2]
[356695832,1742983754396,-872.27,0.00017532,2]
[356695833,1742983754416,-1651.16,0.00017532,2]
[356695834,1742983754436,-547.75,0.00017793,2]
[356695835,1742983754456,-150.0,0.000178,2]
[356695836,1742983754477,-872.37356673,0.00017806,2]
[356695837,1742983754497,-1651.36000001,0.00017806,2]
[356695838,1742983754517,-500.0,0.00017832,2]
[356695839,1742983754538,-890.57510376,0.0001791,2]
[356695840,1742983754560,-2255.14384302,0.00017934,2]
[356695841,1742983754580,-1000.0,0.00018,2]
[356695842,1742983754600,-547.75,0.00018067,2]
[356695843,1742983754620,-418.40181814,0.00018164,2]
[356695844,1742983754640,-160.0,0.00018164,2]
[356695845,1742983754660,-539.41065193,0.0001824,2]
[356695846,1742983754680,-500.0,0.0001824,2]
[356695847,1742983754700,-500.0,0.0001824,2]
[356695848,1742983754721,-500.0,0.0001824,2]
[356695849,1742983754741,-669.10413957,0.0001824,2]
[356695850,1742983754762,-500.0,0.0001824,2]
[356695851,1742983754782,-500.0,0.0001824,2]
[356695852,1742983754802,-747.83036528,0.0001824,2]
[356695853,1742983754824,-500.0,0.0001824,2]
[356695854,1742983754846,-500.0,0.0001824,2]
[356695855,1742983754867,-500.0,0.0001824,2]
[356695856,1742983754888,-727.25994794,0.0001824,2]
[356695857,1742983754909,-190.4469745,0.00018308,2]
[356695858,1742983754930,-834.83451184,0.00018312,2]
[356695859,1742983754954,-547.80228575,0.00018341,2]
[356695860,1742983754975,-182.271159,0.00018355,2]
[356695861,1742983754996,-151.0,0.00018355,2]
[356695862,1742983755019,-1000.0,0.000185,2]
[356695863,1742983755040,-159.19,0.000186,2]
[356695864,1742983755062,-1000.0,0.00018651,2]
[356695865,1742983755083,-1000.0,0.00018651,2]
[356695866,1742983755105,-1000.0,0.00018651,2]
[356695867,1742983755126,-1000.0,0.00018651,2]
[356695868,1742983755149,-1000.0,0.00018651,2]
[356695869,1742983755170,-300.0,0.000187,7]
[356695870,1742983755191,-453.0,0.00018715,2]
[356695871,1742983755211,-500.0,0.00018773,2]
[356695872,1742983755231,-500.33269803,0.00018773,2]
[356695873,1742983755252,-301.78434226,0.00018773,2]
[356695874,1742983755272,-500.0,0.00018773,2]
[356695875,1742983755293,-500.0,0.00018773,2]
[356695876,1742983755314,-20000.0,0.000188,2]
[356695877,1742983755334,-151.0,0.000188,2]
[356695878,1742983755355,-151.0,0.000188,2]
[356695879,1742983755375,-151.0,0.000188,2]
[356695880,1742983755395,-151.0,0.000188,2]
[356695881,1742983755416,-151.0,0.000188,2]
[356695882,1742983755438,-151.0,0.000188,2]
[356695883,1742983755459,-151.0,0.000188,2]
[356695884,1742983755480,-890.57510376,0.000188,2]
[356695885,1742983755501,-500.0,0.00018873,2]
[356695886,1742983755521,-500.0,0.00018873,2]
[356695887,1742983755542,-500.0,0.00018873,2]
[356695888,1742983755563,-500.0,0.00018873,2]
[356695889,1742983755584,-500.0,0.00018873,2]
[356695890,1742983755607,-162.24694057,0.00018873,2]
[356695891,1742983755630,-150.20451589,0.00018873,2]
[356695892,1742983755651,-490.08269837,0.00018873,2]
[356695893,1742983755672,-500.0,0.00018873,2]
[356695894,1742983755692,-500.0,0.00018873,2]
[356695895,1742983755712,-1000.0,0.00018892,2]
[356695896,1742983755736,-15779.29033325,0.000189,2]
[356695897,1742983755757,-4400.66479371,0.000189,2]
[356695898,1742983755780,-3056.19919794,0.000189,2]
[356695899,1742983764191,-7396.73177616,0.00011097,2]
[356695900,1742983768115,-17503.26822384,0.00011097,2]
[356695901,1742983768284,-431.0,0.00011336,2]
[356695902,1742983768305,-2404.90543323,0.000129,2]
[356695903,1742983770093,-404.80477473,0.000129,2]
[356695948,1742983839281,-500.0,0.00011503,2]
[356695949,1742983839291,-500.0,0.00011503,2]
[356695950,1742983839300,-500.0,0.00011503,2]
[356695951,1742983839309,-500.0,0.00011777,2]
[356695952,1742983839319,-522.32756554,0.00011777,2]
[356695953,1742983839328,-500.0,0.00011777,2]
[356695954,1742983839337,-500.0,0.0001192,2]
[356695955,1742983839347,-500.0,0.0001204,2]
[356695956,1742983839357,-602.3,0.0001204,2]
[356695957,1742983839367,-500.0,0.0001204,2]
[356695958,1742983839376,-500.0,0.00012051,2]
[356695959,1742983839385,-500.0,0.000121,2]
[356695960,1742983839395,-500.0,0.000121,2]
[356695961,1742983839404,-500.0,0.000121,2]
[356695962,1742983839414,-500.0,0.000121,2]
[356695963,1742983839423,-500.0,0.00012314,2]
[356695964,1742983839433,-500.0,0.00012588,2]
[356695965,1742983839442,-500.0,0.00012862,2]
[356695966,1742983839452,-68.58465558,0.000129,2]
[356695967,1742983839461,-500.0,0.00013136,2]
[356695968,1742983839470,-305.57972888,0.00013183,2]
[356695980,1742984408681,1092.0,0.0001,10]
[356696013,1742984826151,-1427.18111932,0.00010444,2]
[356696014,1742984826172,-1769.6159006,0.0001055,2]
[356696015,1742984826192,-204.062469,0.00010809,2]
[356696016,1742984826212,-176.664437,0.00010959,2]
[356696017,1742984826234,-326.14,0.00010959,2]
[356696018,1742984826255,-1694.5129239,0.00011392,2]
[356696019,1742984826275,-811.2804178,0.00011676,2]
[356696020,1742984826295,-151.0,0.00011769,2]
[356696021,1742984826320,-302.0,0.00011769,2]
[356696022,1742984826341,-386.63536313,0.00011769,2]
[356696023,1742984829158,-213.36463687,0.00011769,2]
[356696024,1742984829180,-28.26259523,0.00011773,2]
[356696026,1742984834085,-292.43675143,0.00011773,2]
[356696027,1742984834108,-218.92346557,0.00011773,2]
[356696036,1742984882490,-250.0,0.00010444,2]
[356696037,1742984890699,-250.0,0.00010444,2]
[356696046,1742984913451,-195.99239,0.00010338,2]
[356696057,1742984948092,-250.0,0.0001055,2]
[356696058,1742984948114,-300.0,0.00010569,2]
[356696059,1742984948136,-4443.27184506,0.0001057,2]
[356696060,1742984952132,-20456.72815494,0.0001057,2]
[356696061,1742984952154,-500.0,0.00010843,2]
[356696062,1742984952176,-500.0,0.00010843,2]
[356696063,1742984952197,-500.0,0.00010843,2]
[356696064,1742984952217,-556.28402256,0.00010843,2]
[356696065,1742984952238,-500.0,0.00010843,2]
[356696066,1742984952260,-500.0,0.00010843,2]
[356696067,1742984952281,-500.0,0.00010843,2]
[356696068,1742984952303,-500.0,0.00010843,2]
[356696069,1742984952326,-500.0,0.00010843,2]
[356696070,1742984952350,-500.0,0.00010843,2]
[356696071,1742984952373,-418.44575004,0.00010843,2]
[356696072,1742984952396,-500.0,0.00010843,2]
[356696073,1742984952415,-28280.1562252,0.00010844,2]
[356696074,1742984952437,-326.14,0.00010959,2]
[356696075,1742984952456,-217.42,0.00010959,2]
[356696076,1742984952478,-181.19,0.00010959,2]
[356696077,1742984952500,-150.99,0.00010959,2]
[356696078,1742984952521,-754.97,0.00010959,2]
[356696079,1742984952542,-420.0,0.0001162,2]
[356696080,1742984952563,-299.8812767,0.00011774,2]
[356696081,1742984952585,-500.0,0.00011774,2]
[356696082,1742984952606,-500.0,0.00011774,2]
[356696083,1742984952626,-500.0,0.00011774,2]
[356696084,1742984952648,-500.0,0.00011774,2]
[356696085,1742984952669,-500.0,0.00011774,2]
[356696086,1742984952690,-500.0,0.00011774,2]
[356696087,1742984952711,-500.0,0.00011774,2]
[356696088,1742984952732,-500.0,0.00011774,2]
[356696089,1742984952752,-500.0,0.00011774,2]
[356696090,1742984952773,-500.0,0.00011774,2]
[356696091,1742984952795,-500.0,0.00011774,2]
[356696092,1742984952821,-500.0,0.00011774,2]
[356696093,1742984952842,-500.0,0.00011774,2]
[356696094,1742984952862,-153.76012721,0.00011774,2]
[356696095,1742984956153,-346.23987279,0.00011774,2]
[356696096,1742984956176,-500.0,0.00011774,2]
[356696097,1742984956197,-500.0,0.00011774,2]
[356696098,1742984956221,-500.0,0.00011774,2]
[356696099,1742984956241,-500.0,0.00011774,2]
[356696100,1742984956262,-500.0,0.00011774,2]
[356696101,1742984956283,-500.0,0.00011774,2]
[356696102,1742984956303,-500.0,0.00011774,2]
[356696103,1742984956323,-500.0,0.00011774,2]
[356696104,1742984956345,-500.0,0.00011774,2]
[356696105,1742984956371,-488.92662788,0.00011774,2]
[356696106,1742984956392,-28683.22547,0.00011775,3]
[356696107,1742984956413,-459.56128847,0.00011775,2]
[356696108,1742984956434,-500.0,0.00011775,2]
[356696109,1742984956455,-500.0,0.00011775,2]
[356696110,1742984956486,-500.0,0.00011775,2]
[356696111,1742984956511,-500.0,0.00011775,2]
[356696112,1742984956532,-537.0,0.00011775,2]
[356696113,1742984956553,-513.27181046,0.00011775,2]
[356696114,1742984956574,-528.56651841,0.00011775,2]
[356696115,1742984956595,-500.0,0.00011775,2]
[356696116,1742984956617,-500.0,0.00011775,2]
[356696117,1742984956639,-500.0,0.00011775,2]
[356696118,1742984956660,-500.0,0.00011775,2]
[356696119,1742984956682,-500.0,0.00011775,2]
[356696120,1742984956703,-519.63818603,0.00011775,2]
[356696121,1742984956726,-500.0,0.00011775,2]
[356696122,1742984956747,-591.32952435,0.00011775,2]
[356696123,1742984956768,-500.0,0.00011775,2]
[356696124,1742984956788,-500.0,0.00011775,2]
[356696125,1742984956809,-500.0,0.00011775,2]
[356696126,1742984956830,-500.0,0.00011775,2]
[356696127,1742984956851,-500.0,0.00011775,2]
[356696128,1742984956872,-500.0,0.00011775,2]
[356696129,1742984956892,-241.30670723,0.00011775,2]
[356696130,1742984956914,-500.0,0.00011775,2]
[356696131,1742984956935,-500.0,0.00011775,2]
[356696132,1742984956955,-500.0,0.00011775,2]
[356696133,1742984956978,-500.0,0.00011775,2]
[356696134,1742984956999,-500.0,0.00011775,2]
[356696135,1742984957020,-500.0,0.00011775,2]
[356696136,1742984957040,-500.0,0.00011775,2]
[356696137,1742984957061,-500.0,0.00011775,2]